[Event "Late-Titled-Tuesday-Blitz-May-07-2024"]
[Site "Chess.com"]
[Date "2024.05.07"]
[Round "5"]
[White "Mikayel99"]
[Black "czasnaszachy"]
[Result "1-0"]
[WhiteElo "2597"]
[BlackElo "2445"]
[TimeControl "180+1"]
[EndTime "14:57:36 PDT"]
[Termination "Mikayel99 won on time"]

1. e4 {[%clk 0:03:00.9]} 1... e5 {[%clk 0:02:59.4]} 2. Nf3 {[%clk 0:03:00]} 2...
Nc6 {[%clk 0:02:59.4]} 3. Nc3 {[%clk 0:03:00.7]} 3... Nf6 {[%clk 0:02:59.1]} 4.
d4 {[%clk 0:03:01.4]} 4... exd4 {[%clk 0:02:58.7]} 5. Nxd4 {[%clk 0:03:02.3]}
5... Bb4 {[%clk 0:02:58.2]} 6. Nxc6 {[%clk 0:03:02.7]} 6... bxc6 {[%clk
0:02:58.1]} 7. Bd3 {[%clk 0:03:02.6]} 7... d5 {[%clk 0:02:57.1]} 8. exd5 {[%clk
0:03:02.2]} 8... cxd5 {[%clk 0:02:57.2]} 9. O-O {[%clk 0:03:02.6]} 9... O-O
{[%clk 0:02:57.2]} 10. Bg5 {[%clk 0:03:03.2]} 10... Be6 {[%clk 0:02:55.3]} 11.
Ne2 {[%clk 0:03:00.8]} 11... h6 {[%clk 0:02:53.4]} 12. Bh4 {[%clk 0:03:00.9]}
12... c5 {[%clk 0:02:52.7]} 13. c3 {[%clk 0:03:00.5]} 13... Ba5 {[%clk
0:02:51.9]} 14. Nf4 {[%clk 0:02:59.8]} 14... Rb8 {[%clk 0:02:40.5]} 15. Nxe6
{[%clk 0:02:47.1]} 15... fxe6 {[%clk 0:02:40.1]} 16. Qe2 {[%clk 0:02:42.2]}
16... Qd7 {[%clk 0:02:23.6]} 17. Rfe1 {[%clk 0:02:38.2]} 17... Bc7 {[%clk
0:02:16.7]} 18. b3 {[%clk 0:02:28.9]} 18... e5 {[%clk 0:02:13.9]} 19. c4 {[%clk
0:02:19.1]} 19... e4 {[%clk 0:02:07.7]} 20. Bc2 {[%clk 0:02:13.9]} 20... Rbe8
{[%clk 0:01:30.3]} 21. Bxf6 {[%clk 0:02:10.3]} 21... Rxf6 {[%clk 0:01:28.6]} 22.
cxd5 {[%clk 0:02:11]} 22... Qxd5 {[%clk 0:01:27.3]} 23. Bxe4 {[%clk 0:02:05.5]}
23... Qe5 {[%clk 0:01:15]} 24. Bd5+ {[%clk 0:01:44.6]} 24... Kh8 {[%clk
0:01:14.1]} 25. Qxe5 {[%clk 0:01:44.2]} 25... Rxe5 {[%clk 0:01:13]} 26. Bc4
{[%clk 0:01:41.6]} 26... g5 {[%clk 0:01:02]} 27. Rxe5 {[%clk 0:01:40.1]} 27...
Bxe5 {[%clk 0:01:01.7]} 28. Re1 {[%clk 0:01:39.4]} 28... Bd4 {[%clk 0:01:00.8]}
29. Re2 {[%clk 0:01:40]} 29... Kg7 {[%clk 0:00:59.4]} 30. g3 {[%clk 0:01:38.4]}
30... Rf5 {[%clk 0:00:52.7]} 31. Kg2 {[%clk 0:01:32.3]} 31... Re5 {[%clk
0:00:51.1]} 32. Rd2 {[%clk 0:01:33]} 32... Re1 {[%clk 0:00:50.3]} 33. b4 {[%clk
0:01:27.4]} 33... Rb1 {[%clk 0:00:40]} 34. Bb3 {[%clk 0:01:20.9]} 34... Rc1
{[%clk 0:00:17.2]} 35. h3 {[%clk 0:01:11.1]} 35... c4 {[%clk 0:00:12.6]} 36.
Rxd4 {[%clk 0:01:10.9]} 36... cxb3 {[%clk 0:00:12.8]} 37. axb3 {[%clk
0:01:11.8]} 37... Rc3 {[%clk 0:00:11.2]} 38. Rd7+ {[%clk 0:01:12]} 38... Kg6
{[%clk 0:00:11.3]} 39. Rxa7 {[%clk 0:01:12.5]} 39... Rxb3 {[%clk 0:00:11.7]} 40.
Rb7 {[%clk 0:01:13.2]} 40... h5 {[%clk 0:00:11.3]} 41. g4 {[%clk 0:01:09.4]}
41... h4 {[%clk 0:00:10.5]} 42. b5 {[%clk 0:01:09.3]} 42... Kh6 {[%clk
0:00:09.7]} 43. b6 {[%clk 0:01:08]} 43... Kg6 {[%clk 0:00:09.9]} 44. Rb8 {[%clk
0:01:08.5]} 44... Kh7 {[%clk 0:00:09.7]} 45. b7 {[%clk 0:01:07.2]} 45... Kg7
{[%clk 0:00:09.9]} 46. Kf1 {[%clk 0:01:07.4]} 46... Rb2 {[%clk 0:00:09.7]} 47.
Ke1 {[%clk 0:01:07.4]} 47... Kh7 {[%clk 0:00:09.3]} 48. Kd1 {[%clk 0:01:08.1]}
48... Kg7 {[%clk 0:00:08.9]} 49. Kc1 {[%clk 0:01:08.2]} 49... Rb6 {[%clk
0:00:07.2]} 50. Kd2 {[%clk 0:01:08.6]} 50... Rb3 {[%clk 0:00:06.7]} 51. Kc2
{[%clk 0:01:09]} 51... Rb6 {[%clk 0:00:06.1]} 52. Kc3 {[%clk 0:01:09.7]} 52...
Rb1 {[%clk 0:00:06.1]} 53. Kc4 {[%clk 0:01:07.4]} 53... Rc1+ {[%clk 0:00:05.7]}
54. Kd5 {[%clk 0:01:07.7]} 54... Rb1 {[%clk 0:00:06.2]} 55. Kd6 {[%clk
0:00:58.8]} 55... Rb2 {[%clk 0:00:03.8]} 56. f3 {[%clk 0:00:46.8]} 56... Rb1
{[%clk 0:00:03.6]} 57. Kd5 {[%clk 0:00:43.4]} 57... Rb2 {[%clk 0:00:03.1]} 58.
Kd6 {[%clk 0:00:18]} 58... Rb1 {[%clk 0:00:02.9]} 59. Kc5 {[%clk 0:00:17.1]}
59... Rc1+ {[%clk 0:00:02.6]} 60. Kd5 {[%clk 0:00:17.2]} 60... Rb1 {[%clk
0:00:02.8]} 61. f4 {[%clk 0:00:14.7]} 61... gxf4 {[%clk 0:00:02.2]} 62. Ke4
{[%clk 0:00:15.1]} 62... Rb4+ {[%clk 0:00:01.6]} 63. Kf3 {[%clk 0:00:15.7]}
63... Kh7 {[%clk 0:00:01.7]} 64. g5 {[%clk 0:00:14.8]} 64... Kg7 {[%clk
0:00:01.9]} 65. Kg4 {[%clk 0:00:13.5]} 65... f3+ {[%clk 0:00:01.8]} 66. Kxf3
{[%clk 0:00:13.6]} 66... Kh7 {[%clk 0:00:02]} 67. Ke3 {[%clk 0:00:10.2]} 67...
Kg7 {[%clk 0:00:02]} 68. Kd3 {[%clk 0:00:10.5]} 68... Kh7 {[%clk 0:00:02.2]} 69.
Kc3 {[%clk 0:00:10.9]} 69... Rb1 {[%clk 0:00:02.5]} 70. Kd4 {[%clk 0:00:11.5]}
70... Rb5 {[%clk 0:00:01.8]} 71. Ke4 {[%clk 0:00:11.4]} 71... Kg7 {[%clk
0:00:01.9]} 72. Kf4 {[%clk 0:00:11.8]} 72... Rb4+ {[%clk 0:00:02.1]} 73. Kf5
{[%clk 0:00:12.3]} 73... Rb5+ {[%clk 0:00:01.5]} 74. Kg4 {[%clk 0:00:12.8]}
74... Rb4+ {[%clk 0:00:01.9]} 75. Kh5 {[%clk 0:00:11.5]} 75... Kh7 {[%clk
0:00:02]} 76. Re8 {[%clk 0:00:05.6]} 76... Rxb7 {[%clk 0:00:01.4]} 77. Kxh4
{[%clk 0:00:05.9]} 77... Rb4+ {[%clk 0:00:00.4]} 78. Kh5 {[%clk 0:00:05.6]}
78... Rb3 {[%clk 0:00:01.3]} 79. Re7+ {[%clk 0:00:05.2]} 79... Kg8 {[%clk
0:00:00.6]} 80. h4 {[%clk 0:00:05.6]} 80... Rb6 {[%clk 0:00:00.4]} 81. Ra7
{[%clk 0:00:05.7]} 81... Rc6 {[%clk 0:00:00.2]} 82. g6 {[%clk 0:00:05.3]} 1-0

[Event "Late-Titled-Tuesday-Blitz-May-07-2024"]
[Site "Chess.com"]
[Date "2024.05.07"]
[Round "5"]
[White "ahkashefi2800"]
[Black "Onischuk_V"]
[Result "0-1"]
[WhiteElo "2589"]
[BlackElo "2828"]
[TimeControl "180+1"]
[EndTime "14:57:40 PDT"]
[Termination "Onischuk_V won on time"]

1. d4 {[%clk 0:02:52.6]} 1... d6 {[%clk 0:02:58.1]} 2. c4 {[%clk 0:02:51.1]}
2... e5 {[%clk 0:02:56.9]} 3. dxe5 {[%clk 0:02:39.6]} 3... dxe5 {[%clk
0:02:56.7]} 4. Qxd8+ {[%clk 0:02:30.7]} 4... Kxd8 {[%clk 0:02:56.9]} 5. Nf3
{[%clk 0:01:10.8]} 5... f6 {[%clk 0:02:55.2]} 6. e3 {[%clk 0:01:09.1]} 6... Be6
{[%clk 0:02:54.7]} 7. b3 {[%clk 0:01:08.9]} 7... Nd7 {[%clk 0:02:53.1]} 8. Bb2
{[%clk 0:01:08.7]} 8... c6 {[%clk 0:02:52.5]} 9. Nbd2 {[%clk 0:01:07.5]} 9...
Kc7 {[%clk 0:02:51]} 10. O-O-O {[%clk 0:01:07.1]} 10... a5 {[%clk 0:02:50.9]}
11. Bd3 {[%clk 0:01:05.1]} 11... a4 {[%clk 0:02:49.3]} 12. Bc2 {[%clk
0:00:52.9]} 12... Nh6 {[%clk 0:02:47.9]} 13. Kb1 {[%clk 0:00:51.4]} 13... Nf7
{[%clk 0:02:47.9]} 14. Ne1 {[%clk 0:00:38]} 14... Nc5 {[%clk 0:02:33.6]} 15. Nd3
{[%clk 0:00:37.4]} 15... Nxd3 {[%clk 0:02:30.2]} 16. Bxd3 {[%clk 0:00:37.5]}
16... Be7 {[%clk 0:02:28.3]} 17. f4 {[%clk 0:00:30.8]} 17... axb3 {[%clk
0:02:26.3]} 18. axb3 {[%clk 0:00:30.4]} 18... Ba3 {[%clk 0:02:11.1]} 19. Bxa3
{[%clk 0:00:25.4]} 19... Rxa3 {[%clk 0:02:10.1]} 20. Kb2 {[%clk 0:00:26.3]}
20... Rha8 {[%clk 0:02:09.7]} 21. Ra1 {[%clk 0:00:21.2]} 21... Rxa1 {[%clk
0:02:09.3]} 22. Rxa1 {[%clk 0:00:22.1]} 22... Rxa1 {[%clk 0:02:09.2]} 23. Kxa1
{[%clk 0:00:21.8]} 23... h6 {[%clk 0:02:07.2]} 24. g3 {[%clk 0:00:21.8]} 24...
Nd6 {[%clk 0:01:48.6]} 25. Kb2 {[%clk 0:00:20.5]} 25... c5 {[%clk 0:01:47.8]}
26. Kc3 {[%clk 0:00:20.1]} 26... b6 {[%clk 0:01:48.4]} 27. Ne4 {[%clk
0:00:19.8]} 27... Nf5 {[%clk 0:01:42.3]} 28. Kd2 {[%clk 0:00:20]} 28... Ne7
{[%clk 0:01:42.9]} 29. Nc3 {[%clk 0:00:19.7]} 29... Nc6 {[%clk 0:01:42.7]} 30.
Nb5+ {[%clk 0:00:19.5]} 30... Kd7 {[%clk 0:01:42.9]} 31. Be4 {[%clk 0:00:19]}
31... Nd8 {[%clk 0:01:38.4]} 32. fxe5 {[%clk 0:00:18.9]} 32... fxe5 {[%clk
0:01:38.1]} 33. Nc3 {[%clk 0:00:19]} 33... Nf7 {[%clk 0:01:37.5]} 34. Bd5 {[%clk
0:00:19.4]} 34... Ng5 {[%clk 0:01:28]} 35. h4 {[%clk 0:00:19]} 35... Bxd5 {[%clk
0:01:25.4]} 36. hxg5 {[%clk 0:00:19]} 36... Bc6 {[%clk 0:01:25]} 37. gxh6 {[%clk
0:00:19.1]} 37... gxh6 {[%clk 0:01:25]} 38. e4 {[%clk 0:00:19.6]} 38... Kd6
{[%clk 0:01:22.6]} 39. Nd5 {[%clk 0:00:18.6]} 39... b5 {[%clk 0:01:22.7]} 40.
Kd3 {[%clk 0:00:16.3]} 40... b4 {[%clk 0:01:22.3]} 41. Ne3 {[%clk 0:00:16.3]}
41... h5 {[%clk 0:00:52.6]} 42. Nf5+ {[%clk 0:00:16.4]} 42... Ke6 {[%clk
0:00:52.3]} 43. Ng7+ {[%clk 0:00:16.2]} 43... Kf6 {[%clk 0:00:52.4]} 44. Nxh5+
{[%clk 0:00:16.7]} 44... Kg6 {[%clk 0:00:52.7]} 45. g4 {[%clk 0:00:16.4]} 45...
Kg5 {[%clk 0:00:51.9]} 46. Ng7 {[%clk 0:00:12]} 46... Bd7 {[%clk 0:00:51.9]} 47.
Nf5 {[%clk 0:00:07.8]} 47... Kxg4 {[%clk 0:00:51.9]} 48. Nd6 {[%clk 0:00:04.5]}
48... Bc6 {[%clk 0:00:47.3]} 49. Ke3 {[%clk 0:00:04.6]} 49... Kg5 {[%clk
0:00:46.4]} 50. Nf5 {[%clk 0:00:02.6]} 50... Kf6 {[%clk 0:00:46.3]} 51. Ng3
{[%clk 0:00:02.4]} 51... Bd7 {[%clk 0:00:45.9]} 52. Kf3 {[%clk 0:00:02.2]} 52...
Kg5 {[%clk 0:00:45.1]} 53. Ke3 {[%clk 0:00:01.8]} 53... Bg4 {[%clk 0:00:44.8]}
54. Kd2 {[%clk 0:00:01.7]} 54... Kf4 {[%clk 0:00:44.6]} 55. Nf1 {[%clk
0:00:01.8]} 55... Kxe4 {[%clk 0:00:44.7]} 56. Ne3 {[%clk 0:00:02.7]} 56... Be6
{[%clk 0:00:44.8]} 57. Nc2 {[%clk 0:00:02.2]} 57... Kf3 {[%clk 0:00:42.6]} 58.
Ne1+ {[%clk 0:00:02.5]} 58... Ke4 {[%clk 0:00:41.4]} 59. Nd3 {[%clk 0:00:01.8]}
59... Kd4 {[%clk 0:00:41.3]} 60. Ne1 {[%clk 0:00:02.6]} 60... e4 {[%clk
0:00:31.4]} 61. Nc2+ {[%clk 0:00:02.8]} 61... Ke5 {[%clk 0:00:31.6]} 62. Ke3
{[%clk 0:00:03]} 62... Bg4 {[%clk 0:00:31.3]} 63. Kd2 {[%clk 0:00:01.5]} 63...
Kf4 {[%clk 0:00:31.6]} 64. Ne3 {[%clk 0:00:00.7]} 64... Be6 {[%clk 0:00:32.3]}
65. Nc2 {[%clk 0:00:00.6]} 65... Bf7 {[%clk 0:00:30.9]} 66. Ne3 {[%clk
0:00:01.3]} 66... Ke5 {[%clk 0:00:30.2]} 67. Nc2 {[%clk 0:00:02]} 67... Bh5
{[%clk 0:00:29.7]} 68. Ne3 {[%clk 0:00:02.3]} 68... Kd4 {[%clk 0:00:29.8]} 69.
Nc2+ {[%clk 0:00:02.3]} 69... Ke5 {[%clk 0:00:29.5]} 70. Ne3 {[%clk 0:00:02.5]}
70... Be8 {[%clk 0:00:29.1]} 71. Nc2 {[%clk 0:00:03.1]} 71... Bf7 {[%clk
0:00:29.1]} 72. Ne3 {[%clk 0:00:03.1]} 72... Be6 {[%clk 0:00:29.8]} 73. Nc2
{[%clk 0:00:03]} 73... Kf4 {[%clk 0:00:29.2]} 74. Ne3 {[%clk 0:00:02.6]} 74...
Kf3 {[%clk 0:00:29.5]} 75. Nc2 {[%clk 0:00:02.8]} 75... Bxc4 {[%clk 0:00:29.6]}
76. bxc4 {[%clk 0:00:02.7]} 76... b3 {[%clk 0:00:30]} 77. Ne1+ {[%clk
0:00:01.9]} 77... Kf2 {[%clk 0:00:29.7]} 78. Kd1 {[%clk 0:00:01.5]} 78... b2
{[%clk 0:00:29]} 79. Kc2 {[%clk 0:00:01.2]} 79... Kxe1 {[%clk 0:00:27.7]} 0-1

[Event "Late-Titled-Tuesday-Blitz-May-07-2024"]
[Site "Chess.com"]
[Date "2024.05.07"]
[Round "5"]
[White "Alexei_Gubajdullin"]
[Black "Rital44"]
[Result "0-1"]
[WhiteElo "2551"]
[BlackElo "2719"]
[TimeControl "180+1"]
[EndTime "14:57:42 PDT"]
[Termination "Rital44 won by checkmate"]

1. d4 {[%clk 0:03:00]} 1... Nf6 {[%clk 0:02:58.7]} 2. Nf3 {[%clk 0:02:57.5]}
2... g6 {[%clk 0:02:58.4]} 3. Bf4 {[%clk 0:02:57.8]} 3... Bg7 {[%clk 0:02:58.3]}
4. e3 {[%clk 0:02:57.3]} 4... O-O {[%clk 0:02:58.2]} 5. Be2 {[%clk 0:02:57.3]}
5... b6 {[%clk 0:02:57.8]} 6. O-O {[%clk 0:02:57.2]} 6... Bb7 {[%clk 0:02:58.5]}
7. h3 {[%clk 0:02:57.3]} 7... d6 {[%clk 0:02:59]} 8. a4 {[%clk 0:02:57.2]} 8...
a5 {[%clk 0:02:56.8]} 9. Nc3 {[%clk 0:02:56.9]} 9... Nbd7 {[%clk 0:02:55.6]} 10.
Bh2 {[%clk 0:02:56.5]} 10... Re8 {[%clk 0:02:53.5]} 11. Nd2 {[%clk 0:02:56.1]}
11... e5 {[%clk 0:02:53.5]} 12. dxe5 {[%clk 0:02:52.7]} 12... Nxe5 {[%clk
0:02:53.1]} 13. Nc4 {[%clk 0:02:49.8]} 13... Nfd7 {[%clk 0:02:43.4]} 14. Nxe5
{[%clk 0:02:48.2]} 14... Nxe5 {[%clk 0:02:38.9]} 15. Bb5 {[%clk 0:02:45.4]}
15... c6 {[%clk 0:02:18.7]} 16. Be2 {[%clk 0:02:44.8]} 16... d5 {[%clk
0:02:13.6]} 17. Ra3 {[%clk 0:02:34.9]} 17... h5 {[%clk 0:02:07.4]} 18. Rb3
{[%clk 0:02:34.5]} 18... Nd7 {[%clk 0:02:03.2]} 19. Bf3 {[%clk 0:02:14.1]} 19...
Nc5 {[%clk 0:01:58.9]} 20. Ra3 {[%clk 0:02:14]} 20... Qd7 {[%clk 0:01:51.9]} 21.
Re1 {[%clk 0:02:07.2]} 21... Rad8 {[%clk 0:01:49.8]} 22. Qc1 {[%clk 0:02:04.2]}
22... Bh6 {[%clk 0:01:32]} 23. Ne2 {[%clk 0:02:03]} 23... Ne6 {[%clk 0:01:28.7]}
24. Nf4 {[%clk 0:01:32.9]} 24... Nxf4 {[%clk 0:01:26.1]} 25. Bxf4 {[%clk
0:01:32.4]} 25... Bxf4 {[%clk 0:01:25.8]} 26. exf4 {[%clk 0:01:32.9]} 26... d4
{[%clk 0:01:23.6]} 27. Rd3 {[%clk 0:01:22.2]} 27... c5 {[%clk 0:01:19.1]} 28.
Bxb7 {[%clk 0:01:20.2]} 28... Qxb7 {[%clk 0:01:20]} 29. f5 {[%clk 0:01:15.3]}
29... Kg7 {[%clk 0:01:07.2]} 30. fxg6 {[%clk 0:01:11.9]} 30... fxg6 {[%clk
0:01:08.1]} 31. Rg3 {[%clk 0:01:07.5]} 31... Qf7 {[%clk 0:01:03.4]} 32. b3
{[%clk 0:00:58.5]} 32... Rxe1+ {[%clk 0:01:00.5]} 33. Qxe1 {[%clk 0:00:57.6]}
33... Re8 {[%clk 0:01:01.4]} 34. Qd2 {[%clk 0:00:57.4]} 34... Re5 {[%clk
0:00:58.3]} 35. Rf3 {[%clk 0:00:54.9]} 35... Qe6 {[%clk 0:00:57.4]} 36. Qf4
{[%clk 0:00:54.3]} 36... Re1+ {[%clk 0:00:57.1]} 37. Kh2 {[%clk 0:00:54.1]}
37... Qe5 {[%clk 0:00:58]} 38. Qxe5+ {[%clk 0:00:50.4]} 38... Rxe5 {[%clk
0:00:58.9]} 39. c3 {[%clk 0:00:47.6]} 39... Rf5 {[%clk 0:00:47]} 40. Rd3 {[%clk
0:00:42.7]} 40... dxc3 {[%clk 0:00:47.3]} 41. f3 {[%clk 0:00:39.6]} 41... c2
{[%clk 0:00:34.1]} 42. Rc3 {[%clk 0:00:39.5]} 42... Rf4 {[%clk 0:00:34.4]} 43.
Rxc2 {[%clk 0:00:39.1]} 43... Rb4 {[%clk 0:00:35.3]} 44. Rc3 {[%clk 0:00:39.2]}
44... h4 {[%clk 0:00:36.2]} 45. Kg1 {[%clk 0:00:34.6]} 45... Kf6 {[%clk
0:00:37.1]} 46. Kf2 {[%clk 0:00:33.4]} 46... Ke5 {[%clk 0:00:33.9]} 47. Ke3
{[%clk 0:00:33.2]} 47... g5 {[%clk 0:00:33.9]} 48. Rd3 {[%clk 0:00:20.6]} 48...
Rd4 {[%clk 0:00:32.9]} 49. Rc3 {[%clk 0:00:18.6]} 49... Kd5 {[%clk 0:00:32.8]}
50. Rd3 {[%clk 0:00:14.2]} 50... Ke5 {[%clk 0:00:25.6]} 51. Rc3 {[%clk
0:00:13.8]} 51... Rb4 {[%clk 0:00:25.4]} 52. Rd3 {[%clk 0:00:13.1]} 52... c4
{[%clk 0:00:25.9]} 53. bxc4 {[%clk 0:00:12.9]} 53... Rxc4 {[%clk 0:00:25.4]} 54.
Rb3 {[%clk 0:00:09.5]} 54... Rxa4 {[%clk 0:00:25.6]} 55. Rxb6 {[%clk 0:00:09.1]}
55... Ra3+ {[%clk 0:00:25.4]} 56. Kf2 {[%clk 0:00:08.9]} 56... a4 {[%clk
0:00:24.6]} 57. Ra6 {[%clk 0:00:08.3]} 57... Kd4 {[%clk 0:00:22.2]} 58. Ra5
{[%clk 0:00:07.7]} 58... Ra2+ {[%clk 0:00:22.3]} 59. Kg1 {[%clk 0:00:07.7]}
59... a3 {[%clk 0:00:20.6]} 60. Rxg5 {[%clk 0:00:07]} 60... Rb2 {[%clk 0:00:20]}
61. Ra5 {[%clk 0:00:06.4]} 61... a2 {[%clk 0:00:20.9]} 62. Kh2 {[%clk
0:00:06.5]} 62... Ke3 {[%clk 0:00:21.3]} 63. Ra3+ {[%clk 0:00:05.6]} 63... Kf2
{[%clk 0:00:21.6]} 64. f4 {[%clk 0:00:04.1]} 64... Kf1 {[%clk 0:00:21.9]} 65.
Rf3+ {[%clk 0:00:04]} 65... Rf2 {[%clk 0:00:21.3]} 66. Ra3 {[%clk 0:00:03.8]}
66... Rxg2+ {[%clk 0:00:21.5]} 67. Kh1 {[%clk 0:00:04.1]} 67... Rb2 {[%clk
0:00:20.5]} 68. f5 {[%clk 0:00:04]} 68... Kf2 {[%clk 0:00:21]} 69. Kh2 {[%clk
0:00:03.9]} 69... Ke1+ {[%clk 0:00:20.4]} 70. Kh1 {[%clk 0:00:03.8]} 70... Kd2
{[%clk 0:00:20.2]} 71. f6 {[%clk 0:00:03.8]} 71... Rb1+ {[%clk 0:00:19.9]} 72.
Kh2 {[%clk 0:00:03.8]} 72... a1=Q {[%clk 0:00:20.8]} 73. Rxa1 {[%clk 0:00:03.6]}
73... Rxa1 {[%clk 0:00:21.7]} 74. f7 {[%clk 0:00:04]} 74... Rf1 {[%clk
0:00:21.3]} 75. f8=Q {[%clk 0:00:04]} 75... Rxf8 {[%clk 0:00:21.7]} 76. Kg2
{[%clk 0:00:04.4]} 76... Ke2 {[%clk 0:00:22]} 77. Kh2 {[%clk 0:00:04.2]} 77...
Kf3 {[%clk 0:00:21.8]} 78. Kg1 {[%clk 0:00:04]} 78... Rd8 {[%clk 0:00:21.8]} 79.
Kh2 {[%clk 0:00:04.1]} 79... Rd2+ {[%clk 0:00:20.7]} 80. Kh1 {[%clk 0:00:04.3]}
80... Kg3 {[%clk 0:00:20.4]} 81. Kg1 {[%clk 0:00:04.5]} 81... Rd1# {[%clk
0:00:21.3]} 0-1

[Event "Late-Titled-Tuesday-Blitz-May-07-2024"]
[Site "Chess.com"]
[Date "2024.05.07"]
[Round "5"]
[White "ChadBiryani"]
[Black "miraitrunks"]
[Result "1/2-1/2"]
[WhiteElo "2533"]
[BlackElo "2261"]
[TimeControl "180+1"]
[EndTime "14:57:48 PDT"]
[Termination "Game drawn by repetition"]

1. d4 {[%clk 0:02:54.7]} 1... d5 {[%clk 0:02:58.7]} 2. Nc3 {[%clk 0:02:55]} 2...
Bf5 {[%clk 0:02:58.3]} 3. f3 {[%clk 0:02:53.9]} 3... Nf6 {[%clk 0:02:58.4]} 4.
g4 {[%clk 0:02:54.3]} 4... Bg6 {[%clk 0:02:57.9]} 5. h4 {[%clk 0:02:54.9]} 5...
h5 {[%clk 0:02:57.7]} 6. g5 {[%clk 0:02:54.5]} 6... Ng8 {[%clk 0:02:55.2]} 7.
Bf4 {[%clk 0:02:52.7]} 7... Nc6 {[%clk 0:02:54.3]} 8. e3 {[%clk 0:02:53]} 8...
f6 {[%clk 0:02:50.8]} 9. Bb5 {[%clk 0:02:47.1]} 9... e6 {[%clk 0:02:41.3]} 10.
Nh3 {[%clk 0:02:39.8]} 10... Bd6 {[%clk 0:02:41.2]} 11. Bxd6 {[%clk 0:02:38.7]}
11... Qxd6 {[%clk 0:02:41.4]} 12. Nf4 {[%clk 0:02:39.3]} 12... Ne7 {[%clk
0:02:37.3]} 13. Kf2 {[%clk 0:02:29]} 13... a6 {[%clk 0:02:34.7]} 14. Nxg6 {[%clk
0:02:27.1]} 14... Nxg6 {[%clk 0:02:32.2]} 15. Bd3 {[%clk 0:02:27.7]} 15... Nge7
{[%clk 0:02:18.7]} 16. Rg1 {[%clk 0:02:27.5]} 16... O-O-O {[%clk 0:02:18.5]} 17.
Rg3 {[%clk 0:02:23.5]} 17... e5 {[%clk 0:02:17.4]} 18. dxe5 {[%clk 0:02:17.1]}
18... fxe5 {[%clk 0:02:18.3]} 19. Qh1 {[%clk 0:02:12.3]} 19... Rhf8 {[%clk
0:02:15.2]} 20. Qh3+ {[%clk 0:02:10.3]} 20... Kb8 {[%clk 0:02:14.4]} 21. Kg2
{[%clk 0:02:10.9]} 21... Nb4 {[%clk 0:02:01.1]} 22. Rd1 {[%clk 0:02:05.9]} 22...
Nxd3 {[%clk 0:01:55.1]} 23. Rxd3 {[%clk 0:02:04.9]} 23... Qb6 {[%clk 0:01:55.2]}
24. b3 {[%clk 0:02:03.2]} 24... d4 {[%clk 0:01:49.8]} 25. exd4 {[%clk
0:01:47.8]} 25... Rxd4 {[%clk 0:01:50.7]} 26. Qh1 {[%clk 0:00:57.1]} 26... Rxd3
{[%clk 0:01:43.1]} 27. cxd3 {[%clk 0:00:57.4]} 27... Qd4 {[%clk 0:01:42]} 28.
Qe1 {[%clk 0:00:50.1]} 28... Nf5 {[%clk 0:01:40.3]} 29. Rh3 {[%clk 0:00:46.5]}
29... Qxd3 {[%clk 0:01:29.4]} 30. Qxe5 {[%clk 0:00:29.6]} 30... Nxh4+ {[%clk
0:00:57.7]} 31. Kf2 {[%clk 0:00:23.2]} 31... Rxf3+ {[%clk 0:00:48.8]} 32. Rxf3
{[%clk 0:00:23.1]} 32... Qxf3+ {[%clk 0:00:49.7]} 33. Ke1 {[%clk 0:00:22.5]}
33... Nf5 {[%clk 0:00:46.4]} 34. Nd5 {[%clk 0:00:17.6]} 34... Qh1+ {[%clk
0:00:39.7]} 35. Kd2 {[%clk 0:00:12.3]} 35... Nd6 {[%clk 0:00:38.3]} 36. Ne3
{[%clk 0:00:08.1]} 36... h4 {[%clk 0:00:34.5]} 37. Qxg7 {[%clk 0:00:07]} 37...
h3 {[%clk 0:00:34.5]} 38. Qh8+ {[%clk 0:00:06.8]} 38... Ka7 {[%clk 0:00:33.9]}
39. Qd4+ {[%clk 0:00:06.9]} 39... b6 {[%clk 0:00:34.3]} 40. Qg7 {[%clk
0:00:06.4]} 40... Kb7 {[%clk 0:00:28.6]} 41. Qh7 {[%clk 0:00:06.4]} 41... h2
{[%clk 0:00:27.4]} 42. g6 {[%clk 0:00:05.6]} 42... Ne4+ {[%clk 0:00:26.1]} 43.
Kd3 {[%clk 0:00:04.8]} 43... Nc5+ {[%clk 0:00:26.2]} 44. Ke2 {[%clk 0:00:04.2]}
44... Qg1 {[%clk 0:00:23.1]} 45. g7 {[%clk 0:00:03.1]} 45... h1=Q {[%clk
0:00:16.9]} 46. Qxh1+ {[%clk 0:00:03.1]} 46... Qxh1 {[%clk 0:00:16.5]} 47. g8=Q
{[%clk 0:00:03.6]} 47... Qh2+ {[%clk 0:00:16.4]} 48. Qg2+ {[%clk 0:00:03.1]}
48... Qxg2+ {[%clk 0:00:16.2]} 49. Nxg2 {[%clk 0:00:04]} 49... Kc6 {[%clk
0:00:16.3]} 50. Kd2 {[%clk 0:00:03.4]} 50... Kd5 {[%clk 0:00:16.7]} 51. Kc2
{[%clk 0:00:03.3]} 51... Ke4 {[%clk 0:00:17]} 52. Ne1 {[%clk 0:00:01.9]} 52...
c6 {[%clk 0:00:16.7]} 53. Ng2 {[%clk 0:00:02.3]} 53... Ne6 {[%clk 0:00:14.2]}
54. Nh4 {[%clk 0:00:02]} 54... c5 {[%clk 0:00:13.5]} 55. Ng6 {[%clk 0:00:02]}
55... b5 {[%clk 0:00:13.5]} 56. Ne7 {[%clk 0:00:02.1]} 56... Kd4 {[%clk
0:00:11.7]} 57. Nc6+ {[%clk 0:00:01.6]} 57... Kd5 {[%clk 0:00:12]} 58. Nb8
{[%clk 0:00:01.6]} 58... a5 {[%clk 0:00:12.2]} 59. Nd7 {[%clk 0:00:02.3]} 59...
Kc6 {[%clk 0:00:11.6]} 60. Ne5+ {[%clk 0:00:02.4]} 60... Kd5 {[%clk 0:00:11.9]}
61. Nd7 {[%clk 0:00:02.8]} 61... Nd4+ {[%clk 0:00:11.8]} 62. Kb2 {[%clk
0:00:02.9]} 62... Nc6 {[%clk 0:00:12.7]} 63. Nb6+ {[%clk 0:00:02.6]} 63... Kd4
{[%clk 0:00:12.4]} 64. Nd7 {[%clk 0:00:02.8]} 64... Nb4 {[%clk 0:00:12.6]} 65.
Nb6 {[%clk 0:00:01.4]} 65... c4 {[%clk 0:00:12.1]} 66. bxc4 {[%clk 0:00:01]}
66... bxc4 {[%clk 0:00:13]} 67. a3 {[%clk 0:00:01.2]} 67... c3+ {[%clk
0:00:12.4]} 68. Kb3 {[%clk 0:00:01]} 68... Nd3 {[%clk 0:00:12.6]} 69. Kc2 {[%clk
0:00:01.3]} 69... Ne1+ {[%clk 0:00:12.3]} 70. Kc1 {[%clk 0:00:01.6]} 70... Kd3
{[%clk 0:00:12.1]} 71. Na4 {[%clk 0:00:01.9]} 71... Nf3 {[%clk 0:00:11.6]} 72.
Nc5+ {[%clk 0:00:02.2]} 72... Kc4 {[%clk 0:00:11.6]} 73. Nb7 {[%clk 0:00:02.8]}
73... a4 {[%clk 0:00:10.8]} 74. Na5+ {[%clk 0:00:03.1]} 74... Kd3 {[%clk
0:00:10.2]} 75. Nc6 {[%clk 0:00:02.4]} 75... Nd4 {[%clk 0:00:09.4]} 76. Nb4+
{[%clk 0:00:03]} 76... Kc4 {[%clk 0:00:09.3]} 77. Nc2 {[%clk 0:00:02.4]} 77...
Nxc2 {[%clk 0:00:08.6]} 78. Kxc2 {[%clk 0:00:03.3]} 78... Kd4 {[%clk 0:00:09.1]}
79. Kc1 {[%clk 0:00:03.6]} 79... Kd3 {[%clk 0:00:09.6]} 80. Kd1 {[%clk 0:00:04]}
80... Kc4 {[%clk 0:00:09.1]} 81. Kc2 {[%clk 0:00:04.4]} 81... Kd4 {[%clk
0:00:09.5]} 82. Kc1 {[%clk 0:00:04.8]} 82... Kd3 {[%clk 0:00:09.9]} 83. Kd1
{[%clk 0:00:05.2]} 83... Kc4 {[%clk 0:00:10]} 84. Kc2 {[%clk 0:00:05.7]} 1/2-1/2